[Event "7th Sharjah Masters 2024"]
[Site "Sharjah"]
[Date "2024.05.21"]
[Round "8.17"]
[White "Sevian, Samuel"]
[Black "Safarli, Eltaj"]
[Result "1-0"]
[ECO "C42"]
[WhiteElo "2699"]
[BlackElo "2597"]
[Annotator "TA"]
[PlyCount "85"]
[EventDate "2024.05.13"]
[EventType "swiss"]
[EventCountry "UAE"]
[SourceTitle "playchess.com"]
[Source "ChessBase"]
[SourceQuality "1"]
[TimeControl "5400+30"]

{[%evp 13,85,19,20,20,21,0,11,2,12,23,24,20,22,30,0,16,52,50,56,21,26,25,29,22,41,45,139,0,134,135,122,127,144,165,177,156,218,226,214,222,250,221,322,320,382,378,378,353,375,374,354,342,359,367,459,428,435,402,445,434,538,458,541,533,774,775,810,795,1076,829,1309,1241,29978,29964]} 1. e4 {[%emt 1:31:00]} e5 {[%emt 1:31:00]} 2. Nf3 {[%emt 0:00:30]} Nf6 {[%emt 0:00:30]} 3. Nxe5 {[%emt 0:00:30]} d6 {[%emt 0:00:30]} 4. Nf3 {[%emt 0:00:30]} Nxe4 {[%emt 0:00:30]} 5. Nc3 {[%emt 0:00:30]} Nxc3 {[%emt 0:00:30]} 6. dxc3 {[%emt 0:00:30]} Be7 {[%emt 0:00:30]} 7. Be3 {[%emt 0:00:30]} O-O {[%emt 0:00:30]} 8. Qd2 {[%emt 0:00:30]} Nd7 {[%emt 0:00:30]} 9. O-O-O {[%emt 0:00:30]} Nf6 {[%emt 0:00:30]} 10. h4 {[%emt 0:00:30] The position is equal.} c6 {[%emt 0:00:30][%cal Bc7c6,Bc6c5,Bc5c4][%mdl 32]} 11. Bd3 {[%emt 0:00:30]} d5 {[%emt 0:00:30]} 12. Kb1 {[%emt 0:00:30]} Re8 {[%emt 0:00:30]} 13. Ng5 {[%emt 0:00:30]} h6 {[%emt 0:00:30]} 14. f3 {[%emt 0:00:30][%cal Og2g4] Wards off Ng4} c5 {[%emt 0:00:30][%cal Oc5c4] [#]} (14... hxg5 15. hxg5 Qa5 (15... Nd7 $2 16. g4 $18) 16. g4 $18 (16. gxf6 Bxf6 17. Bf4 Qd8 $18)) 15. g4 $1 {[%emt 0:00:30]} c4 {[%emt 0:00:30]} (15... hxg5 $2 16. hxg5 Nxg4 (16... Nd7 17. Rh8+ Kxh8 18. Qh2+ Kg8 19. Qh7+ Kf8 20. Qh8#) 17. fxg4 $18) 16. Bf1 {[%emt 0:00:30]} (16. Be2 $5) 16... b5 {[%emt 0:00:30][%cal Oa8b8]} (16... hxg5 $2 17. hxg5 Bd6 18. gxf6 Qxf6 19. Rh3 $18 (19. Qxd5 Rxe3 20. Bxc4 Be6 $11)) 17. Nh3 {[%emt 0:00:30] And now g5 would win.} b4 $1 {[%emt 0:00:30]} 18. g5 {[%emt 0:00:30]} Nh5 {[%emt 0:00:30] aiming for ...Ng3.} (18... bxc3 $6 19. Qxc3 hxg5 20. hxg5 $16) 19. gxh6 {[%emt 0:00:30]} Bf5 {[%emt 0:00:30]} (19... Rb8 $14) 20. Ng5 {[%emt 0:00:30]} (20. Qxd5 b3 21. axb3 cxb3 $15) (20. cxb4 $16 {Bf2 would now be deadly.} Bxb4 21. Qxb4 (21. Qxd5 $2 Qxd5 22. Rxd5 Rxe3 $19) 21... Rxe3 22. Bxc4) 20... gxh6 {[%emt 0:00:30] [#]} (20... bxc3 $11 {remains equal.} 21. Qxc3 (21. Qxd5 $2 {too greedy.} Bxg5 22. Bxc4 Qxd5 $19) 21... Bf6 (21... gxh6 22. Ne4 $18)) 21. Ne4 $1 $16 {[%emt 0:00:30][%mdl 512] White now steadily converts the win.} Bg6 {[%emt 0:00:30]} 22. Qxd5 {[%emt 0:00:30] White is more active.} Qxd5 {[%emt 0:00:30]} 23. Rxd5 {[%emt 0:00:30]} Nf6 {[%emt 0:00:30]} 24. Bxc4 {[%emt 0:00:30] Black must now prevent Nxf6+.} bxc3 {[%emt 0:00:30]} (24... Nxd5 $16 {might work better.} 25. Bxd5 Rad8) 25. Nxf6+ $18 {[%emt 0:00:30]} Bxf6 {[%emt 0:00:30]} 26. Bxh6 {[%emt 0:00:30] Hoping for Rd6.} Rac8 {[%emt 0:00:30]} 27. Bb3 {[%emt 0:00:30]} Re5 {[%emt 0:00:30]} (27... Red8 {was called for.} 28. Ra5 Rd7) 28. Rd6 {[%emt 0:00:30]} Rf5 {[%emt 0:00:30] [#]} 29. h5 $1 {[%emt 0:00:30]} Bxh5 {[%emt 0:00:30] [#]} 30. Rxf6 {[%emt 0:00:30][%mdl 512]} Rxf6 {[%emt 0:00:30]} 31. Rxh5 {[%emt 0:00:30]} Rxf3 {[%emt 0:00:30]} 32. bxc3 {[%emt 0:00:30]} Rcxc3 {[%emt 0:00:30]} 33. Kb2 {[%emt 0:00:30]} Rh3 {[%emt 0:00:30]} 34. Rg5+ {[%emt 0:00:30]} Kh7 {[%emt 0:00:30]} 35. Bf8 {[%emt 0:00:30]} ({Inferior is} 35. Bxf7 Kxh6 36. Rg8 Rhe3 $11) 35... Rcg3 {[%emt 0:00:30]} 36. Ra5 {[%emt 0:00:30]} Kg6 {[%emt 0:00:30]} 37. Bd6 {[%emt 0:00:30]} Rf3 {[%emt 0:00:30]} 38. Rxa7 {[%emt 0:00:30]} f5 {[%emt 0:00:30][%cal Bf7f5,Bf5f4,Bf4f3][%mdl 32]} 39. a4 {[%emt 0:00:30][%cal Ba2a4,Ba4a5,Ba5a6][%mdl 32]} f4 {[%emt 0:00:30]} 40. a5 {[%emt 0:00:30]} Rf1 {[%emt 0:00:30]} 41. Bc4 {[%emt 0:00:30]} Rf2 {[%emt 0:00:30]} 42. a6 {[%emt 0:00:30][%cal Oa7g7]} f3 {[%emt 0:00:30]} 43. Rb7 {[%emt 0:00:30] Weighted Error Value: White=0.14 (very precise) /Black=0.47.  Mistake:       	White=1     	Black=4      Inaccurate:     	White=1     	Black=2      OK:         	White=16    	Black=7      Best:        	White=1     	Black=2      Strong:       	White=1     	Black=1      Brilliant:      	White=2     	---} 1-0

[Event "7th Sharjah Masters 2024"]
[Site "Sharjah"]
[Date "2024.05.21"]
[Round "8.18"]
[White "Deac, Bogdan-Daniel"]
[Black "Horvath, Dominik"]
[Result "1-0"]
[ECO "A33"]
[WhiteElo "2693"]
[BlackElo "2554"]
[Annotator "TA"]
[PlyCount "111"]
[EventDate "2024.05.13"]
[EventType "swiss"]
[EventCountry "UAE"]
[SourceTitle "playchess.com"]
[Source "ChessBase"]
[SourceQuality "1"]
[TimeControl "5400+30"]

{[%evp 28,111,0,0,0,0,0,0,0,0,5,0,0,0,0,0,0,0,0,0,0,0,0,0,0,0,0,0,0,0,0,0,0,0,10,-43,-44,-63,-72,-72,-68,-127,-119,-112,0,0,0,0,0,0,0,0,14,0,12,0,0,0,0,0,0,0,0,0,0,0,0,0,0,0,0,0,0,0,0,0,0,0,227,246,242,251,241,222,231,197]} 1. Nf3 {[%emt 1:31:00]} Nf6 {[%emt 1:31:00]} 2. c4 {[%emt 0:00:30]} c5 {[%emt 0:00:30]} 3. Nc3 {[%emt 0:00:30]} Nc6 {[%emt 0:00:30]} 4. d4 {[%emt 0:00:30]} cxd4 {[%emt 0:00:30]} 5. Nxd4 {[%emt 0:00:30]} e6 {[%emt 0:00:30]} 6. Bf4 {[%emt 0:00:30]} d5 {[%emt 0:00:30]} 7. a3 {[%emt 0:00:30] A33: Symmetrical English: 2 Nf3 Nf6 3 d4 cxd4 4 Nxd4 e6 5 Nc3 Nc6.} Bc5 {[%emt 0:00:30]} 8. Nxc6 {[%emt 0:00:30]} bxc6 {[%emt 0:00:30]} 9. e3 {[%emt 0:00:30]} O-O {[%emt 0:00:30]} 10. Be2 {[%emt 0:00:30]} Bd6 {[%emt 0:00:30]} 11. Bxd6 {[%emt 0:00:30]} Qxd6 {[%emt 0:00:30]} 12. O-O {[%emt 0:00:30]} a5 {[%emt 0:00:30]} 13. Qa4 $146 {[%emt 0:00:30]} ({Predecessor:} 13. Qc2 Rb8 14. Rfd1 Bd7 15. Na4 Rb7 16. c5 Qe5 17. Nb6 Rfb8 18. Rab1 Ne4 19. Ba6 {½-½ Bachmann,A (2629)-Howell,D (2670) Gibraltar Masters 13th 2015 (8)}) 13... Ba6 {[%emt 0:00:30]} 14. Rfd1 {[%emt 0:00:30]} Nd7 {[%emt 0:00:30]} 15. Qc2 {[%emt 0:00:30]} Nb6 {[%emt 0:00:30]} 16. cxd5 {[%emt 0:00:30]} Bxe2 {[%emt 0:00:30]} 17. Qxe2 {[%emt 0:00:30]} cxd5 {[%emt 0:00:30]} 18. Nb5 {[%emt 0:00:30]} Qd7 {[%emt 0:00:30]} 19. a4 {[%emt 0:00:30]} Rfc8 {[%emt 0:00:30]} 20. b3 {[%emt 0:00:30]} Qe7 {[%emt 0:00:30]} 21. Qd2 {[%emt 0:00:30]} Nd7 {[%emt 0:00:30]} 22. Rac1 {[%emt 0:00:30]} Nc5 {[%emt 0:00:30]} 23. Rc3 {[%emt 0:00:30]} Qd8 {[%emt 0:00:30]} 24. f3 {[%emt 0:00:30]} Na6 {[%emt 0:00:30]} 25. Rdc1 {[%emt 0:00:30]} Nb4 {[%emt 0:00:30]} 26. Nc7 {[%emt 0:00:30]} Rab8 {[%emt 0:00:30]} 27. f4 {[%emt 0:00:30]} h6 {[%emt 0:00:30]} 28. h3 {[%emt 0:00:30]} Qd7 {[%emt 0:00:30]} 29. Rc5 {[%emt 0:00:30]} Qd8 {[%emt 0:00:30]} 30. Kh1 {[%emt 0:00:30]} Qd7 {[%emt 0:00:30]} 31. e4 {[%emt 0:00:30]} ({White should try} 31. Kh2 $11) 31... d4 $1 $15 {[%emt 0:00:30]} 32. f5 {[%emt 0:00:30]} exf5 $1 {[%emt 0:00:30]} 33. exf5 {[%emt 0:00:30]} Rb6 $1 {[%emt 0:00:30]} (33... d3 34. f6 $11) 34. R5c4 {[%emt 0:00:30]} (34. f6 $1 $15) 34... d3 $17 {[%emt 0:00:30]} (34... Qxf5 $2 35. Nd5 Qxd5 36. Rxc8+ Kh7 37. R8c5 $16) 35. f6 {[%emt 0:00:30] [#]} Rxf6 {[%emt 0:00:30]} ({Black should play} 35... g5 $1 $17 {[%cal Oc8d8] And now ...Rd8! would win.} 36. Kh2 Rd8 (36... Rxf6 37. Nd5 $14)) 36. Nd5 $1 $11 {[%emt 0:00:30]} Qxd5 {[%emt 0:00:30]} ({Don't blunder} 36... Rxc4 $2 37. Nxf6+ gxf6 38. Rxc4 $18) 37. Rxc8+ {[%emt 0:00:30]} Kh7 {[%emt 0:00:30]} 38. R8c5 {[%emt 0:00:30]} Qd4 {[%emt 0:00:30]} 39. R5c4 {[%emt 0:00:30]} Qd6 {[%emt 0:00:30]} 40. Rd1 {[%emt 0:00:30]} Qg3 {[%emt 0:00:30]} 41. Rg4 {[%emt 0:00:30]} (41. Rxb4 {simplifies} axb4 42. Qxd3+ Qxd3 43. Rxd3 Rf1+ 44. Kh2) 41... Qe5 {[%emt 0:00:30]} 42. Rxb4 {[%emt 0:00:30]} axb4 {[%emt 0:00:30]} 43. Qxd3+ g6 {[%emt 0:00:30]} 44. Qc4 {[%emt 0:01:00]} Rf4 {[%emt 0:00:30]} 45. Qd3 {[%emt 0:00:30]} Kg7 {[%emt 0:00:30]} 46. Rf1 {[%emt 0:00:30]} Rd4 {[%emt 0:00:30]} 47. Qf3 {[%emt 0:00:30]} Rd7 {[%emt 0:00:30]} 48. Qf4 {[%emt 0:00:30]} Qc3 {[%emt 0:00:30]} 49. Rf3 {[%emt 0:00:30]} Qc5 {[%emt 0:00:30]} 50. Qf6+ {[%emt 0:00:30]} Kg8 {[%emt 0:00:30]} 51. Kh2 {[%emt 0:00:30]} Qc7+ {[%emt 0:00:30]} 52. Qf4 {[%emt 0:00:30]} Rd6 $2 {[%emt 0:00:30]} (52... Qc5 $11) 53. Rd3 $18 {[%emt 0:00:30]} (53. Qxh6 $2 {is the wrong capture.} Rd4+ 54. Rg3 Rd3 $19) 53... Rd7 {[%emt 0:00:30]} 54. Qxc7 {[%emt 0:00:30]} Rxc7 {[%emt 0:00:30] [#]} 55. Rd8+ $1 {[%emt 0:00:30]} Kg7 {[%emt 0:00:30]} 56. Rb8 {[%emt 0:00:30]} 1-0

[Event "7th Sharjah Masters 2024"]
[Site "Sharjah"]
[Date "2024.05.21"]
[Round "8.19"]
[White "Nihal Sarin"]
[Black "Can, Emre"]
[Result "1/2-1/2"]
[ECO "B67"]
[WhiteElo "2680"]
[BlackElo "2549"]
[Annotator "TA"]
[PlyCount "45"]
[EventDate "2024.05.13"]
[EventType "swiss"]
[EventCountry "UAE"]
[SourceTitle "playchess.com"]
[Source "ChessBase"]
[SourceQuality "1"]
[TimeControl "5400+30"]

{[%evp 18,45,31,24,27,23,27,25,31,10,32,36,35,34,47,25,35,0,0,0,0,0,0,0,0,0,0,0,0,-1102]} 1. e4 {[%emt 1:31:00]} c5 {[%emt 1:31:00]} 2. Nf3 {[%emt 0:00:30]} d6 {[%emt 0:00:30]} 3. d4 {[%emt 0:00:30]} cxd4 {[%emt 0:00:30]} 4. Nxd4 {[%emt 0:00:30]} Nf6 {[%emt 0:00:30]} 5. Nc3 {[%emt 0:00:30]} Nc6 {[%emt 0:00:30]} 6. Bg5 {[%emt 0:00:30]} a6 {[%emt 0:00:30]} 7. Qd2 {[%emt 0:00:30]} e6 {[%emt 0:00:30]} 8. O-O-O {[%emt 0:00:30]} Bd7 {[%emt 0:00:30]} 9. Kb1 {[%emt 0:00:30]} Be7 {[%emt 0:00:30]} 10. f3 {[%emt 0:00:30]} Nxd4 {[%emt 0:00:30]} 11. Qxd4 {[%emt 0:00:30]} b5 {[%emt 0:00:30][%cal Bb7b5,Bb5b4][%mdl 32]} 12. h4 {[%emt 0:00:30]} Qc7 {[%emt 0:00:30] White has an edge.} 13. g4 {[%emt 0:00:30][%cal Bg2g4,Bg4g5][%mdl 32]} Rb8 {[%emt 0:00:30]} 14. Be3 {[%emt 0:00:30]} b4 {[%emt 0:00:30]} 15. Ne2 {[%emt 0:00:30]} Bb5 {[%emt 0:00:30]} 16. g5 {[%emt 0:00:30]} (16. Qxb4 $2 {perishes.} Bxe2 17. Qa4+ Bb5 18. Bxb5+ axb5 $19) (16. Qd2 {simplifies} Nd7 17. Bg2 Bxe2 18. Qxe2 a5 19. f4) 16... Nh5 {[%emt 0:00:30][%cal Bf6h5,Bh5f4,Bf4g6][%mdl 32]} 17. Nf4 {[%emt 0:00:30]} (17. Qxb4 $2 {too greedy.} Bxe2 18. Qa4+ Bb5 19. Bxb5+ axb5 $19) (17. Qd2 {simplifies} O-O 18. Nf4 Nxf4 19. Bxf4 Bxf1 20. Rhxf1 Rfc8 21. h5) 17... Nxf4 {[%emt 0:00:30] The position is equal.} 18. Qxg7 {[%emt 0:00:30]} (18. Bxf4 $2 {is the wrong capture.} e5 19. Qe3 exf4 $19) 18... Ng6 {[%emt 0:00:30] [#] Hoping for ...Rc8.} 19. h5 {[%emt 0:00:30]} Bf8 $1 {[%emt 0:00:30]} 20. Qf6 {[%emt 0:00:30]} Be7 {[%emt 0:00:30]} 21. Qg7 {[%emt 0:00:30]} Bf8 $1 {[%emt 0:00:30]} 22. Qf6 {[%emt 0:00:30]} Be7 {[%emt 0:00:30]} 23. Qf5 $2 {[%mdl 40960] Weighted Error Value: White=0.05 (flawless) /Black=0.02 (flawless) .  Loses game:     	White=1     	---        Inaccurate:     	White=1     	---        OK:         	White=6     	Black=5      Best:        	---       	Black=3      Strong:       	---       	Black=2     . An unexpected result.} 1/2-1/2

[Event "7th Sharjah Masters 2024"]
[Site "Sharjah"]
[Date "2024.05.21"]
[Round "8.20"]
[White "Erdogmus, Yagiz Kaan"]
[Black "Sadhwani, Raunak"]
[Result "1/2-1/2"]
[ECO "D36"]
[WhiteElo "2554"]
[BlackElo "2654"]
[Annotator "TA"]
[PlyCount "52"]
[EventDate "2024.05.13"]
[EventType "swiss"]
[EventCountry "UAE"]
[SourceTitle "playchess.com"]
[Source "ChessBase"]
[SourceQuality "1"]
[TimeControl "5400+30"]

{[%evp 24,52,18,2,16,4,16,10,18,0,27,20,24,8,27,16,22,15,53,53,38,0,0,0,0,0,0,0,0,10,3]} 1. c4 {[%emt 1:31:00]} e6 {[%emt 1:31:00]} 2. Nc3 {[%emt 0:00:30]} d5 {[%emt 0:00:30]} 3. d4 {[%emt 0:00:30]} Nf6 {[%emt 0:00:30]} 4. cxd5 {[%emt 0:00:30]} exd5 {[%emt 0:00:30]} 5. Bg5 {[%emt 0:00:30]} c6 {[%emt 0:00:30]} 6. e3 {[%emt 0:00:30]} h6 {[%emt 0:00:30]} 7. Bh4 {[%emt 0:00:30]} Be7 {[%emt 0:00:30]} 8. Bd3 {[%emt 0:00:30]} O-O {[%emt 0:00:30]} 9. Nf3 {[%emt 0:00:30]} Ne4 {[%emt 0:00:30]} 10. Bxe7 {[%emt 0:00:30]} Qxe7 {[%emt 0:00:30]} 11. Qc2 {[%emt 0:00:30]} Re8 {[%emt 0:00:30]} 12. O-O {[%emt 0:00:30]} Nd7 {[%emt 0:00:30]} 13. Rae1 {[%emt 0:00:30]} a5 {[%emt 0:00:30]} 14. Nd2 {[%emt 0:00:30]} Nxd2 {[%emt 0:00:30]} 15. Qxd2 {[%emt 0:00:30]} Nb6 {[%emt 0:00:30]} 16. Ne2 {[%emt 0:00:30]} h5 {[%emt 0:00:30]} 17. Nf4 {[%emt 0:00:30]} Qg5 {[%emt 0:00:30]} 18. f3 {[%emt 0:00:30][%cal Bf2f3,Bf3e4,Be4e5][%mdl 32]} Bf5 {[%emt 0:00:30]} 19. e4 {[%emt 0:00:30]} Bh7 {[%emt 0:00:30]} 20. Re2 {[%emt 0:00:30]} dxe4 {[%emt 0:00:30]} 21. fxe4 {[%emt 0:00:30]} Rad8 {[%emt 0:00:30]} 22. d5 {[%emt 0:00:30]} Nd7 {[%emt 0:00:30] The position is equal.} 23. Qxa5 {[%emt 0:00:30]} Nf6 {[%emt 0:00:30]} 24. Qb4 {[%emt 0:00:30]} cxd5 {[%emt 0:00:30]} 25. e5 {[%emt 0:00:30]} Bxd3 {[%emt 0:00:30]} (25... Rxe5 $2 {loses.} 26. h4 (26. Qxb7 Bxd3 27. Rxe5 Qxe5 $17) 26... Qg3 27. Rf3 (27. Rxe5 Ng4 $11) (27. Bxh7+ Kxh7 28. Rxe5 Ng4 $11) 27... Qxh4 28. Rxe5 $18) (25... Ne4 $5) 26. Nxd3 {[%emt 0:00:30]} Rd7 {[%emt 0:00:30] Weighted Error Value: White=0.11 (very precise) /Black=0.07 (flawless) .  Inaccurate:     	White=1     	Black=2      OK:         	White=3     	Black=7} 1/2-1/2

[Event "7th Sharjah Masters 2024"]
[Site "Sharjah"]
[Date "2024.05.21"]
[Round "8.21"]
[White "Sargsyan, Shant"]
[Black "Bharath Subramaniyam H"]
[Result "1-0"]
[ECO "C55"]
[WhiteElo "2637"]
[BlackElo "2545"]
[Annotator "RC"]
[PlyCount "129"]
[EventDate "2024.05.13"]
[EventType "swiss"]
[EventCountry "UAE"]
[SourceTitle "playchess.com"]
[Source "ChessBase"]
[SourceQuality "1"]
[TimeControl "5400+30"]

1. e4 {[%emt 1:31:00]} e5 {[%emt 1:31:00]} 2. Nf3 {[%emt 0:00:30]} Nc6 {[%emt 0:00:30]} 3. Bc4 {[%emt 0:00:30]} Nf6 {[%emt 0:00:30]} 4. d3 {[%emt 0:00:30]} Be7 {[%emt 0:00:30]} 5. O-O {[%emt 0:00:30]} O-O {[%emt 0:00:30]} 6. Nc3 {[%emt 0:00:30]} d6 {[%emt 0:00:30]} 7. a4 {[%emt 0:00:30]} Na5 {[%emt 0:00:30]} 8. Ba2 {[%emt 0:00:30]} c5 {[%emt 0:00:30]} 9. Bg5 {[%emt 0:00:30]} Nc6 {[%emt 0:00:30]} 10. Bxf6 {[%emt 0:00:30]} Bxf6 {[%emt 0:00:30]} 11. Nd5 {[%emt 0:00:30]} Be6 {[%emt 0:00:30]} 12. c3 {[%emt 0:00:30]} g6 {[%emt 0:00:30]} 13. Qd2 {[%emt 0:00:30]} Bg7 {[%emt 0:00:30]} 14. Rab1 {[%emt 0:00:30]} b6 {[%emt 0:00:30]} 15. b4 {[%emt 0:00:30]} Kh8 {[%emt 0:00:30]} 16. Bc4 {[%emt 0:00:30]} Bg4 {[%emt 0:00:30]} 17. Ne1 {[%emt 0:00:30]} cxb4 {[%emt 0:00:30]} 18. cxb4 {[%emt 0:00:30]} Qh4 {[%emt 0:00:30]} 19. f3 {[%emt 0:00:30]} Bd7 {[%emt 0:00:30]} 20. Nc2 {[%emt 0:00:30]} Bh6 {[%emt 0:00:30]} 21. Qf2 {[%emt 0:00:30]} Qxf2+ {[%emt 0:00:30]} 22. Kxf2 {[%emt 0:00:30]} Nd4 {[%emt 0:00:30]} 23. Nxd4 {[%emt 0:00:30]} exd4 {[%emt 0:00:30]} 24. f4 {[%emt 0:00:30]} Rac8 {[%emt 0:00:30]} 25. g3 {[%emt 0:00:30]} Be6 {[%emt 0:00:30]} 26. h4 {[%emt 0:00:30]} Bxd5 {[%emt 0:00:30]} 27. Bxd5 {[%emt 0:00:30]} Rc3 {[%emt 0:00:30]} 28. Bc4 {[%emt 0:00:30]} f6 {[%emt 0:00:30]} 29. Ke2 {[%emt 0:00:30]} Re8 {[%emt 0:00:30]} 30. Rfe1 {[%emt 0:00:30]} Kg7 {[%emt 0:00:30]} 31. a5 {[%emt 0:00:30]} g5 {[%emt 0:00:30]} 32. Kf3 {[%emt 0:00:30]} Rc2 {[%emt 0:00:30]} 33. axb6 {[%emt 0:00:30]} axb6 34. Ra1 {[%emt 0:00:30]} gxh4 {[%emt 0:01:00]} 35. gxh4 {[%emt 0:00:30]} Rh2 {[%emt 0:00:30]} 36. Kg3 {[%emt 0:00:30]} Rb2 {[%emt 0:00:30]} 37. Ra7+ {[%emt 0:00:30]} Kh8 {[%emt 0:00:30]} 38. Bf7 {[%emt 0:00:30]} Rf8 {[%emt 0:00:30]} 39. Be6 {[%emt 0:00:30]} Rd2 {[%emt 0:00:30]} 40. Ra3 {[%emt 0:00:30]} Re8 {[%emt 0:00:30]} 41. Rc1 {[%emt 0:00:30]} Rxe6 {[%emt 0:00:30]} 42. Rc8+ {[%emt 0:00:30]} Bf8 {[%emt 0:00:30]} 43. f5 {[%emt 0:00:30]} Re7 {[%emt 0:00:30]} 44. Rxf8+ {[%emt 0:00:30]} Kg7 45. Rd8 {[%emt 0:00:30]} Re2 {[%emt 0:01:00]} 46. Rxd6 {[%emt 0:00:30]} Re3+ {[%emt 0:00:30]} 47. Kf4 {[%emt 0:00:30]} R7xe4+ {[%emt 0:00:30]} 48. dxe4 {[%emt 0:00:30]} Rxa3 {[%emt 0:00:30]} 49. Rxd4 {[%emt 0:00:30]} h5 {[%emt 0:00:30]} 50. Rd7+ {[%emt 0:00:30]} Kg8 51. Rd8+ {[%emt 0:00:30]} Kg7 {[%emt 0:01:00]} 52. Rd7+ {[%emt 0:00:30]} Kg8 {[%emt 0:00:30]} 53. Rd6 {[%emt 0:00:30]} Kg7 {[%emt 0:00:30]} 54. e5 {[%emt 0:00:30]} fxe5+ {[%emt 0:00:30]} 55. Kxe5 {[%emt 0:00:30]} b5 {[%emt 0:00:30]} 56. Rd7+ {[%emt 0:00:30]} Kh6 {[%emt 0:00:30]} 57. Rd4 {[%emt 0:00:30]} Kg7 {[%emt 0:00:30]} 58. Kf4 {[%emt 0:00:30]} Kf6 {[%emt 0:00:30]} 59. Rd6+ {[%emt 0:00:30]} Kf7 {[%emt 0:00:30]} 60. Rb6 {[%emt 0:00:30]} Rb3 {[%emt 0:00:30]} 61. Rxb5 {[%emt 0:00:30]} Rh3 {[%emt 0:00:30]} 62. Rb7+ {[%emt 0:00:30]} Kf6 {[%emt 0:00:30]} 63. Rb6+ {[%emt 0:00:30]} Kf7 {[%emt 0:00:30]} 64. Kg5 {[%emt 0:00:30]} Rg3+ {[%emt 0:00:30]} 65. Kxh5 {[%emt 0:00:30]} 1-0